bitfinex/quotes_ETHUSD_20251217
["timestamp","ask_amount","ask_price","bid_price","bid_amount"]
[1765985850372,0.002,2999.7,2998.3,0.09034784]
[1765985850373,8.0519,2999.6,2998.3,0.09034784]
[1765985850572,0.579,2999.5,2998.3,0.09034784]
[1765985850766,1.04338023,2999.5,2998.3,0.09034784]
[1765985850970,2.32,2999.2,2997.9,0.09034784]
[1765985851287,1.04338023,2999.5,2997.9,0.09034784]
[1765985851288,1.0808433,2999.5,2998.6,0.09034784]
[1765985851604,8.0519,2999.3,2998.5,0.09034784]
[1765985852172,3.33569373,2999.7,2998.5,0.09034784]
[1765985852373,0.002,2999.7,2998.7,0.09034784]
[1765985852593,0.002,2999.7,2998.8,1.0367]
[1765985853169,0.002,2999.7,2998.7,0.09034784]
[1765985853573,0.91162802,2999.7,2998.8,0.09034784]
[1765985853771,0.91162802,2999.7,2998.6,0.09034784]
[1765985854503,0.46438023,2999.6,2998.7,0.09034784]
[1765985854672,8.0519,3000.3,2999.1,0.09034784]
[1765985854875,3.91111112,3000.2,2999.1,0.09034784]
[1765985855106,2.78438023,2999.9,2998.9,0.09034784]
[1765985855273,0.46438023,3000.1,2998.4,0.09034784]
[1765985855478,0.46438023,2999.9,2998.8,0.09034784]
[1765985855681,8.51628023,2999.9,2998.6,0.09034784]
[1765985855913,0.46438023,2999.7,2998.6,0.09034784]
[1765985856122,0.33623802,2999.6,2998.2,0.09034784]
[1765985856406,3.33435482,3000.9,2998.4,0.09034784]
[1765985856594,0.46438023,3000.0,2998.6,0.09034784]
[1765985856905,0.46438023,3000.0,2998.8,0.09034784]
[1765985857105,2.32,2999.8,2998.8,0.09034784]
[1765985857406,5.7319,2999.6,2998.2,0.09034784]
[1765985857716,1.67227023,2999.5,2998.0,0.09034784]
[1765985857913,1.20789,2999.5,2998.0,0.09034784]
[1765985858085,5.7319,2999.1,2998.0,0.09034784]
[1765985858272,8.0519,2998.8,2997.6,0.09034784]
[1765985858479,5.7319,2998.9,2997.6,0.09034784]
[1765985858805,5.7319,2998.5,2997.6,0.09034784]
[1765985859107,1.04138023,2998.4,2997.3,0.09034784]
[1765985859424,2.32,2998.6,2997.0,1.12704784]
[1765985859425,0.577,2999.1,2997.7,3.33581629]
[1765985859589,0.46438023,2999.2,2998.0,3.33551825]
[1765985859775,0.46438023,2999.2,2998.0,3.33546921]
[1765985859976,8.0519,2999.3,2997.7,1.0367]
[1765985860182,8.0519,2999.1,2997.5,0.09034784]
[1765985860389,8.51628023,2998.8,2997.5,0.09034784]
[1765985860595,8.51628023,2998.8,2996.7,3.42730496]
[1765985860596,0.46438023,2998.3,2996.3,1.12704784]
[1765985860915,2.1426,2997.8,2996.1,0.09034784]
[1765985861077,0.578,2997.7,2996.1,0.09034784]
[1765985861292,8.0256,2997.5,2996.1,0.09034784]
[1765985861622,0.578,2997.4,2996.6,0.09034784]
[1765985861792,0.578,2997.4,2996.4,0.09034784]
[1765985861793,8.6036,2997.4,2996.4,0.09034784]
[1765985861989,8.6036,2997.4,2996.1,0.55472807]
[1765985862183,2.1426,2997.2,2995.8,3.42826758]
[1765985862412,8.0256,2997.2,2995.8,0.09034784]
[1765985862610,1.37956,2997.1,2995.8,0.09034784]
[1765985862891,0.577,2997.0,2996.0,0.09034784]
[1765985863090,0.577,2996.9,2996.0,0.09034784]
[1765985863616,0.577,2996.8,2996.0,0.09034784]
[1765985863799,8.6026,2996.8,2995.7,0.09034784]
[1765985863999,9.46286,2996.8,2995.5,0.66834784]
[1765985864209,8.0256,2996.6,2995.6,0.09034784]
[1765985864410,0.576,2996.9,2995.8,0.09034784]
[1765985864586,2.1426,2996.7,2995.6,0.09034784]
[1765985864784,0.576,2996.9,2995.4,0.001]
[1765985864785,8.82816,2996.6,2995.4,0.001]
[1765985864989,0.577,2996.5,2995.4,0.001]
[1765985865223,8.82816,2996.6,2995.4,0.001]
[1765985865422,0.577,2996.5,2995.5,0.09034784]
[1765985865590,0.940516,2996.4,2995.5,0.09034784]
[1765985865796,0.940516,2996.4,2995.4,0.001]
[1765985865990,5.883,2996.3,2995.4,0.001]
[1765985866197,6.823516,2996.4,2995.4,0.001]
[1765985866496,0.577,2996.3,2995.4,0.001]
[1765985866710,1.5313116,2996.3,2995.4,0.001]
[1765985866909,0.9543116,2996.3,2995.4,0.001]
[1765985867110,0.577,2996.2,2995.4,0.001]
[1765985867424,0.405504,2995.6,2994.2,0.001]
[1765985867720,20.62970026,2996.0,2992.6,3.34156823]
[1765985867721,5.883,2994.7,2992.6,3.34156823]
[1765985868026,8.0256,2994.3,2992.9,3.34120801]
[1765985868209,2.1426,2994.2,2993.1,0.09034784]
[1765985868413,8.6026,2994.1,2992.7,0.09034784]
[1765985868720,5.883,2993.8,2991.9,0.67809136]
[1765985868924,2.1426,2993.7,2992.4,0.09034784]
[1765985869133,0.576,2993.6,2992.4,0.09034784]
[1765985869328,0.576,2993.5,2991.9,0.67809136]
[1765985869494,8.0256,2993.9,2992.1,0.09034784]
[1765985869827,0.576,2993.8,2992.8,3.34131609]
[1765985870014,0.576,2993.8,2993.1,0.09034784]
[1765985870389,0.576,2993.8,2992.9,0.09034784]
[1765985870599,0.576,2993.8,2993.2,0.09034784]
[1765985870825,0.576,2993.8,2993.4,0.09034784]
[1765985871026,0.576,2993.8,2993.2,0.09034784]
[1765985871226,0.576,2993.8,2993.4,0.09034784]
[1765985871534,0.576,2993.8,2993.1,0.09034784]
[1765985871695,2.1426,2993.6,2992.9,0.09034784]
[1765985872029,8.6016,2993.5,2992.9,0.09034784]
[1765985872322,8.6016,2993.5,2993.1,0.09034784]
[1765985872563,8.0256,2993.4,2993.1,4.784e-05]
[1765985872729,0.576,2993.5,2993.1,4.784e-05]
[1765985872905,8.0256,2994.5,2993.3,0.09034784]
[1765985873105,8.0256,2994.2,2993.3,0.09034784]
[1765985873316,8.0256,2994.2,2993.1,4.784e-05]
[1765985873317,5.883,2994.2,2993.1,4.784e-05]
[1765985873517,5.883,2994.2,2992.9,0.09034784]
[1765985873827,2.2343,2993.9,2992.9,0.09034784]
[1765985874125,5.4635,2993.5,2992.4,0.001]
[1765985874327,7.6978,2993.6,2992.4,0.001]
[1765985874629,2.2343,2993.7,2992.8,0.09034784]
[1765985874804,7.6978,2993.4,2992.6,0.09034784]
[1765985875217,0.46438023,2994.0,2992.6,0.09034784]
[1765985875422,8.07822004,2994.0,2992.9,0.09034784]
[1765985875729,0.575,2993.9,2993.3,0.09034784]
[1765985876231,7.6978,2994.2,2993.5,0.09034784]
[1765985876431,0.575,2994.1,2993.5,0.09034784]
[1765985876638,7.6978,2994.2,2993.7,0.09034784]
[1765985876929,6.67779632,2995.0,2993.5,0.09034784]
[1765985876930,7.6978,2994.3,2993.5,0.09034784]
[1765985877335,0.575,2994.2,2993.7,0.09034784]
[1765985877552,12.90207963,2994.9,2993.9,0.09034784]
[1765985877553,0.575,2994.6,2993.9,0.09034784]
[1765985877710,2.2343,2994.9,2993.9,0.09034784]
[1765985877910,0.575,2994.8,2993.9,0.09034784]
[1765985878132,2.2343,2995.3,2993.9,0.09034784]
[1765985878441,2.69868023,2995.1,2993.9,0.09034784]
[1765985878732,2.69868023,2995.1,2993.7,0.09034784]
[1765985878901,2.2343,2994.8,2993.8,0.09034784]
[1765985879237,2.2343,2995.0,2994.0,0.09034784]
[1765985879406,0.574,2994.7,2994.0,0.09034784]
[1765985880210,0.46438023,2995.2,2994.1,0.09034784]
[1765985880411,0.574,2995.1,2994.1,0.09034784]
[1765985880612,5.4635,2994.7,2992.4,0.001]
[1765985880799,5.4635,2994.3,2992.4,0.001]
[1765985881026,5.4635,2994.1,2992.4,0.001]
[1765985881322,5.4635,2994.1,2992.5,6.6833751]
[1765985881505,0.574,2994.0,2992.6,3.0854]
[1765985881837,0.574,2994.0,2993.0,0.001]
[1765985882132,30.0,2994.9,2993.0,0.001]
[1765985882337,2.2343,2994.4,2993.0,0.001]
[1765985882521,2.2343,2994.2,2993.0,0.001]
[1765985883546,2.2343,2993.9,2992.4,0.001]
[1765985883854,2.2343,2993.6,2992.4,0.001]
[1765985884243,2.2343,2993.6,2991.9,0.001]
[1765985884244,6.68136566,2993.4,2991.9,0.001]
[1765985884429,5.4635,2992.8,2991.5,0.001]
[1765985884630,0.405504,2992.0,2990.4,0.001]
[1765985884957,2.2343,2991.2,2990.4,0.001]
[1765985885130,2.2343,2990.7,2989.3,0.8364]
[1765985885659,0.574,2990.6,2989.1,3.34539936]
[1765985885820,0.574,2990.6,2989.4,0.09034784]
[1765985886026,12.76377917,2991.8,2989.4,0.09034784]
[1765985886027,0.574,2990.5,2989.4,4.48174784]
[1765985886446,2.2343,2990.9,2989.4,4.3914]
[1765985886447,5.57787132,2990.9,2989.4,4.3914]
[1765985886751,7.6978,2990.6,2989.2,0.09034784]
[1765985887054,7.6978,2990.6,2989.4,0.09034784]
[1765985887233,3.34219301,2992.1,2989.4,0.09034784]
[1765985887234,0.573,2990.8,2989.6,4.48174784]
[1765985887430,3.34224598,2992.0,2990.1,4.3914]
[1765985887652,0.573,2991.9,2990.4,4.3914]
[1765985887855,7.6978,2992.2,2990.6,3.555]
[1765985888057,3.34090992,2993.2,2991.5,0.09034784]
[1765985888243,7.6978,2992.8,2991.5,0.09034784]
[1765985888442,7.6978,2992.8,2991.5,3.43308134]
[1765985888645,8.2708,2992.7,2991.5,0.09034784]
[1765985888838,0.46438023,2992.6,2991.5,0.09034784]
[1765985889042,0.573,2992.5,2991.5,7.34050996]
[1765985889235,0.573,2992.5,2991.5,3.99770592]
[1765985889541,8.0824,2992.4,2991.3,0.09034784]
[1765985889743,0.46438023,2992.3,2991.3,0.09034784]
[1765985890125,8.0824,2992.4,2990.9,0.09034784]
[1765985890346,0.573,2992.5,2990.9,0.09034784]
[1765985890558,0.46438023,2991.8,2990.9,0.09034784]
[1765985890763,0.573,2991.7,2990.7,0.09034784]
[1765985890928,0.573,2991.7,2990.4,0.09034784]
[1765985890929,5.9187,2991.5,2990.4,0.09034784]
[1765985891135,5.9187,2991.2,2990.3,0.001]
[1765985891341,8.1436,2991.1,2990.3,0.001]
[1765985891542,2.2249,2990.8,2990.1,0.09034784]
[1765985891751,0.572,2990.7,2990.1,0.09034784]
[1765985892260,0.572,2990.7,2990.0,0.001]
[1765985892564,9.58716,2990.7,2990.0,0.001]
[1765985892757,5.9187,2991.6,2990.0,0.001]
[1765985893058,0.46438023,2991.2,2990.0,0.001]
[1765985893566,10.0,2992.9,2990.5,5.1204]
[1765985893773,10.0,2992.9,2990.4,0.09034784]
[1765985893774,5.9187,2992.5,2990.7,0.09034784]
[1765985893932,30.0,2992.2,2990.4,0.09034784]
[1765985894132,6.4907,2992.1,2990.4,0.09034784]
[1765985894361,5.9187,2992.0,2990.7,0.09034784]
[1765985894559,3.43308829,2993.4,2990.7,0.09034784]
[1765985894560,5.9187,2992.4,2990.7,1.65474784]
[1765985894761,18.87091078,2993.0,2990.7,0.09034784]
[1765985894961,2.2249,2992.4,2990.7,0.09034784]
[1765985895133,5.9187,2991.9,2990.7,0.09034784]
[1765985895333,0.572,2991.8,2990.7,0.09034784]
[1765985895531,2.2249,2993.0,2990.9,8.87091078]
[1765985895735,2.2249,2992.4,2991.4,0.09034784]
[1765985896055,0.572,2992.4,2991.4,0.09034784]
[1765985896460,0.572,2992.3,2990.7,0.09034784]
[1765985896636,2.2249,2991.9,2990.7,0.09034784]
[1765985896963,8.1182,2992.7,2991.4,3.34286269]
[1765985897266,8.1182,2992.7,2990.8,3.4467]
[1765985897267,0.572,2992.6,2991.5,0.09034784]
[1765985897469,0.572,2992.6,2991.3,0.09034784]
[1765985897676,2.3504,2992.4,2991.3,0.09034784]
[1765985897876,0.572,2992.6,2991.1,3.43359858]
[1765985897877,0.572,2992.6,2991.1,0.09034784]
[1765985898168,0.572,2992.6,2990.9,0.09034784]
[1765985898169,0.405504,2992.5,2991.2,0.09034784]
[1765985898474,8.87091078,2993.1,2991.2,0.09034784]
[1765985898475,2.3504,2992.3,2991.4,0.09034784]
[1765985898680,2.8144,2992.2,2991.2,0.09034784]
[1765985899158,0.002,2992.1,2991.1,0.09034784]
[1765985899368,8.0415,2992.0,2990.9,0.09034784]
[1765985899579,5.7991,2991.7,2990.3,0.001]
[1765985899755,5.7991,2991.3,2990.3,0.001]
[1765985900081,8.6135,2991.2,2990.3,0.001]
[1765985900247,3.3434752,2990.9,2990.0,0.001]
[1765985900558,8.0415,2990.7,2990.0,0.001]
[1765985901469,0.571,2990.6,2990.0,0.001]
[1765985901846,0.571,2990.6,2990.1,0.09034784]
[1765985902050,8.0415,2991.2,2990.3,0.09034784]
[1765985902242,0.571,2991.1,2990.1,0.09034784]
[1765985902438,8.4682,2991.1,2990.0,0.001]
[1765985902651,2.1715,2990.8,2990.0,0.001]
[1765985903373,0.571,2991.0,2990.0,0.001]
[1765985903374,2.1715,2990.6,2990.0,0.001]
[1765985903676,0.571,2990.5,2990.0,0.001]
[1765985904056,7.8972,2990.4,2990.0,0.001]
[1765985904251,7.8964,2990.4,2990.0,0.001]
[1765985904658,2.1715,2990.4,2989.5,0.003]
[1765985904859,2.1715,2990.4,2989.6,0.09034784]
[1765985905155,2.1715,2990.4,2989.5,0.003]
[1765985905359,2.1715,2990.4,2989.7,0.09034784]
[1765985905557,2.1715,2990.4,2989.5,0.09334784]
[1765985905767,2.1715,2990.4,2989.5,0.003]
[1765985905965,0.571,2990.6,2989.5,0.003]
[1765985905966,2.8006,2990.3,2989.5,0.003]
[1765985906275,8.2807,2990.3,2989.5,0.003]
[1765985906696,1.39807,2990.3,2989.5,0.003]
[1765985906856,1.39807,2990.3,2989.1,0.001]
[1765985906857,2.2306,2989.7,2989.1,0.001]
[1765985907256,7.7107,2989.5,2988.9,0.003]
[1765985907560,7.7107,2990.0,2989.0,0.09034784]
[1765985907765,10.43660037,2990.7,2989.0,0.09034784]
[1765985907766,0.57,2989.9,2989.0,0.09034784]
[1765985907955,0.57,2989.8,2988.9,0.003]
[1765985908155,7.7107,2989.7,2988.9,0.003]
[1765985908351,7.7107,2989.7,2989.0,0.09034784]
[1765985908768,7.7107,2989.3,2988.3,0.001]
[1765985909085,3.7495122,2990.5,2988.5,1.66865074]
[1765985909086,0.46438023,2990.5,2988.5,1.66865074]
[1765985909286,2.2306,2990.1,2988.7,3.34593636]
[1765985909487,5.4801,2990.0,2988.6,3.34597775]
[1765985909687,0.57,2989.9,2988.5,1.0171]
[1765985909887,22.758,2989.4,2988.3,0.001]
[1765985910191,6.0501,2989.3,2988.3,0.001]
[1765985910355,7.7107,2989.0,2988.3,0.001]
[1765985910552,0.57,2988.9,2988.3,0.001]
[1765985910752,8.2807,2988.9,2988.3,0.001]
[1765985911285,7.7107,2988.7,2987.7,0.09034784]
[1765985911999,2.2306,2988.3,2986.7,0.57]
[1765985912159,8.2807,2988.3,2986.7,1.0171]
[1765985912359,0.57,2988.3,2986.7,3.7175]
[1765985912593,0.57,2988.3,2986.8,6.69612962]
[1765985912888,2.2306,2987.7,2986.5,3.34838882]
[1765985913089,0.57,2987.6,2986.8,0.09034784]
[1765985913257,0.57,2987.6,2986.0,0.003]
[1765985913457,7.7107,2987.5,2986.0,0.003]
[1765985913663,7.7107,2987.3,2986.0,0.003]
[1765985913861,8.52820802,2987.3,2986.2,3.34865112]
[1765985914068,0.57,2987.2,2986.1,3.7175]
[1765985914390,0.57,2987.4,2986.0,3.7205]
[1765985914593,5.4801,2986.9,2984.7,1.6418221]
[1765985914779,3.34961,2986.8,2985.8,3.34917811]
[1765985914957,2.2306,2986.8,2985.8,3.34917811]
[1765985915161,5.4801,2987.1,2985.8,6.69836425]
[1765985915357,0.571,2987.2,2985.9,3.7205]
[1765985915571,2.2306,2987.3,2986.1,0.09034784]
[1765985915795,2.2306,2987.9,2986.7,0.09034784]
[1765985915997,5.4801,2988.0,2986.9,0.09034784]
[1765985916174,0.571,2987.9,2986.9,0.09034784]
[1765985916361,5.4801,2987.6,2985.8,5.52197811]
[1765985916561,5.4801,2988.6,2986.7,2.7034]
[1765985916784,5.4801,2988.6,2985.9,0.60449073]
[1765985916785,5.4801,2988.6,2987.0,2.1728]
[1765985916997,5.4801,2988.6,2987.3,0.09034784]
[1765985917291,5.4801,2988.6,2987.0,4.8762]
[1765985917494,0.405504,2988.5,2986.3,4.8762]
[1765985917699,0.46438023,2988.3,2986.4,0.571]
[1765985917883,7.26289665,2988.7,2986.4,0.571]
[1765985917884,4.711,2989.7,2987.5,3.539]
[1765985918084,2.2306,2989.3,2987.6,2.53573478]
[1765985918492,2.2306,2989.1,2987.7,3.34705626]
[1765985918686,2.2306,2989.1,2987.6,0.36293478]
[1765985918884,2.2306,2989.1,2987.6,0.93393478]
[1765985919203,2.2306,2989.1,2987.4,0.09034784]
[1765985919204,2.2306,2989.0,2987.4,0.09034784]
[1765985919399,0.571,2989.1,2987.7,0.09034784]
[1765985919608,3.60434784,2990.4,2987.7,0.09034784]
[1765985919609,11.94892242,2990.5,2988.1,3.539]
[1765985919773,5.4801,2990.3,2988.2,0.60446496]
[1765985920103,5.4801,2989.8,2987.7,2.26314784]
[1765985920303,5.4801,2989.4,2987.7,2.83414784]
[1765985920506,0.571,2989.6,2988.0,3.539]
[1765985920812,5.9128,2990.1,2988.6,2.26724784]
[1765985920970,5.9128,2990.1,2988.7,0.571]
[1765985921172,5.9128,2990.1,2988.7,0.85482478]
[1765985921432,5.9128,2989.9,2988.7,0.28382478]
[1765985921718,5.9128,2989.5,2988.6,0.571]
[1765985921919,5.9128,2989.5,2988.2,0.09034784]
[1765985922108,8.191,2989.4,2988.2,0.09034784]
[1765985922491,8.191,2989.4,2988.2,3.43675371]
[1765985922689,5.9128,2989.2,2988.0,0.09034784]
[1765985922909,5.9128,2988.9,2987.9,0.571]
[1765985923222,8.191,2988.8,2987.6,0.66134784]
[1765985923391,0.571,2989.9,2988.1,2.1769]
[1765985923592,5.9128,2989.7,2988.3,2.1769]
[1765985923920,5.9128,2989.3,2988.3,0.571]
[1765985924512,0.8191,2989.6,2988.3,3.91733096]
[1765985924822,8.191,2989.7,2988.6,0.09034784]
[1765985925023,5.9128,2989.6,2988.6,0.09034784]
[1765985925327,3.34439007,2990.1,2988.6,2.26724784]
[1765985925502,3.34439007,2990.1,2988.4,0.09034784]
[1765985925503,5.9128,2989.5,2988.4,0.09034784]
[1765985925697,8.191,2989.2,2988.6,0.001]
[1765985925896,5.9128,2988.9,2987.9,0.09034784]
[1765985926439,5.9128,2988.6,2987.5,0.001]
[1765985926593,0.405504,2988.4,2987.5,0.001]
[1765985926791,5.9128,2987.9,2986.9,0.57]
[1765985927005,5.9128,2987.9,2986.6,5.52511862]
[1765985927006,8.191,2987.9,2986.6,5.52511862]
[1765985927209,8.191,2987.9,2986.6,2.1769]
[1765985927409,8.191,2987.9,2986.7,0.57]
[1765985927823,2.1552,2987.8,2986.6,2.1769]
[1765985928131,5.6495,2987.6,2986.4,0.09034784]
[1765985928292,2.1552,2987.6,2986.1,0.09034784]
[1765985928491,6.69500886,2987.3,2986.0,0.57]
[1765985928825,2.1552,2987.1,2985.5,0.09034784]
[1765985929234,2.1552,2987.1,2985.7,5.6838398]
[1765985929412,2.1552,2987.1,2985.9,0.09034784]
[1765985929603,2.1552,2987.1,2985.9,0.65934784]
[1765985929798,0.21552,2987.8,2986.2,0.09034784]
[1765985929799,0.569,2987.6,2986.2,0.09034784]
[1765985930216,5.6495,2987.5,2986.1,0.569]
[1765985930428,5.6495,2987.5,2986.0,2.2442]
[1765985930429,5.6495,2987.5,2986.0,0.569]
[1765985930600,5.6495,2987.5,2986.4,0.09034784]
[1765985930802,5.6495,2987.5,2986.2,0.09034784]
[1765985931029,6.2185,2987.5,2986.2,0.09034784]
[1765985931332,6.2185,2987.5,2986.1,2.8132]
[1765985931530,5.6495,2987.3,2985.4,2.2472]
[1765985931718,5.6495,2986.6,2985.4,0.003]
[1765985931919,5.6495,2986.0,2985.4,0.003]
[1765985932231,0.4504,2985.5,2983.3,3.3519261]
[1765985932533,0.57,2985.6,2983.8,3.35143106]
[1765985932705,0.4504,2985.5,2984.0,2.2442]
[1765985932904,0.4504,2985.5,2984.0,2.70858023]
[1765985933233,0.57,2985.6,2984.3,2.70858023]
[1765985933639,0.57,2985.6,2984.5,2.2442]
[1765985934140,0.4504,2985.8,2984.6,0.46438023]
[1765985934340,0.569,2985.7,2984.2,2.2442]
[1765985934635,5.6495,2986.1,2984.6,5.59473273]
[1765985934835,0.57,2986.3,2984.8,2.2442]
[1765985935039,10.09034784,2987.5,2985.0,2.2442]
[1765985935040,6.2185,2986.7,2985.0,2.2442]
[1765985935244,0.4504,2986.2,2984.7,0.09034784]
[1765985935538,6.055004,2985.6,2983.9,2.31955118]
[1765985935708,5.9392,2985.2,2983.9,2.31955118]
[1765985936106,0.57,2985.5,2984.2,2.2475]
[1765985936325,0.57,2985.5,2984.4,2.2475]
[1765985936534,5.9392,2985.7,2984.4,2.2475]
[1765985936733,0.57,2985.9,2984.5,2.2475]
[1765985937108,0.57,2985.9,2984.7,2.2475]
[1765985937543,0.57,2985.9,2984.9,2.2475]
[1765985938044,5.894304,2985.7,2983.9,0.001]
[1765985938248,5.894304,2985.7,2984.0,4.8448]
[1765985938410,5.894304,2985.7,2984.1,2.8175]
[1765985938613,6.1352304,2985.7,2984.2,1.10134778]
[1765985938918,5.4888,2985.6,2984.3,4.8448]
[1765985939117,5.4888,2985.6,2984.4,2.2475]
[1765985939442,5.4888,2985.6,2984.2,1.10134778]
[1765985939612,5.4888,2985.6,2984.5,0.57]
[1765985940013,4.1888,2985.6,2984.5,2.8175]
[1765985940237,0.5745,2986.1,2984.7,2.2475]
[1765985940413,0.0045,2986.0,2984.3,2.2475]
[1765985940617,0.0045,2986.0,2984.4,2.2475]
[1765985940819,0.410004,2986.0,2984.5,0.22475]
[1765985941017,0.46438023,2986.0,2982.9,3.3524033]
[1765985941247,0.46438023,2986.0,2982.6,2.2475]
[1765985941248,30.0,2984.9,2982.6,2.2475]
[1765985941410,2.2064,2984.3,2982.7,0.77134]
[1765985941743,2.2064,2984.1,2982.7,0.77134]
[1765985941942,5.4888,2983.6,2982.3,0.571]
[1765985942414,0.571,2983.7,2982.5,2.2475]
[1765985942614,0.571,2983.7,2982.7,2.2475]
[1765985942818,0.571,2983.7,2982.3,0.571]
[1765985943009,0.571,2983.7,2981.4,2.19936419]
[1765985943010,5.4484,2983.3,2981.7,2.1622]
[1765985943211,2.3634,2983.4,2981.9,2.1622]
[1765985943415,5.4484,2983.3,2981.9,2.1622]
[1765985943970,2.322,2983.2,2981.8,0.27332]
[1765985944113,9.90125574,2983.8,2982.7,0.09034784]
[1765985944311,2.322,2983.4,2981.6,2.3516]
[1765985944612,6.24499835,2983.3,2981.9,0.571]
[1765985944816,2.322,2982.9,2981.6,2.3516]
[1765985945056,30.0,2985.0,2981.7,4.8458]
[1765985945214,5.5733,2984.5,2982.0,0.46438023]
[1765985945416,0.46438023,2984.7,2982.2,0.46438023]
[1765985945645,10.0,2985.7,2984.0,0.09034784]
[1765985945847,5.9635,2985.0,2983.8,0.09034784]
[1765985946416,5.9635,2985.0,2983.2,4.8458]
[1765985946611,5.9635,2984.8,2983.2,4.8458]
[1765985946912,5.9635,2984.6,2982.5,4.1178]
[1765985947115,5.9635,2984.6,2982.0,3.9081054]
[1765985947116,2.417704,2984.0,2982.1,0.571]
[1765985947351,6.5345,2983.9,2982.1,0.571]
[1765985947552,0.571,2983.9,2982.1,0.571]
[1765985947719,5.9635,2983.7,2982.1,3.35333897]
[1765985947919,5.9635,2983.7,2982.1,0.572]
[1765985948466,5.9635,2983.5,2982.0,3.44377796]
[1765985948650,6.5355,2983.5,2982.2,2.8721]
[1765985948960,1.03638023,2984.2,2982.5,2.3001]
[1765985949255,2.5842,2984.2,2982.6,2.8721]
[1765985949423,2.0122,2984.1,2982.6,2.3001]
[1765985949615,0.572,2984.2,2982.9,2.2391]
[1765985949815,0.572,2984.2,2983.0,0.572]
[1765985950039,2.0122,2985.0,2982.2,6.7064583]
[1765985950223,10.04926881,2985.3,2982.4,2.2391]
[1765985950224,19.743,2984.8,2982.4,2.2391]
[1765985950445,0.405504,2984.4,2982.5,2.2391]
[1765985950618,2.5842,2984.3,2982.6,6.7055589]
[1765985950815,5.4644,2984.6,2982.8,2.3664]
[1765985951044,5.4644,2984.3,2982.9,2.9384]
[1765985951249,6.0364,2984.2,2982.9,2.9384]
[1765985951415,2.5842,2984.2,2982.9,2.3664]
[1765985951742,2.5842,2984.2,2982.9,2.9384]
[1765985951743,5.4644,2984.1,2982.9,2.9384]
[1765985951942,5.4644,2984.1,2982.9,2.3664]
[1765985952242,5.4636,2984.0,2982.5,2.3664]
[1765985952450,5.4636,2984.0,2982.6,0.572]
[1765985952618,2.0122,2984.0,2982.5,2.9384]
[1765985952820,2.0122,2984.0,2982.5,6.29128588]
[1765985953027,0.572,2984.2,2982.6,2.2362]
[1765985953233,3.9229882,2984.2,2982.7,2.2362]
[1765985953419,0.405504,2983.8,2982.0,2.32654784]
[1765985953742,0.571,2983.7,2982.0,5.50894784]
[1765985953942,2.5832,2983.7,2982.9,0.001]
[1765985954321,0.571,2983.7,2982.9,0.001]
[1765985954716,5.9452,2984.1,2982.9,0.001]
[1765985954916,5.9452,2985.3,2983.8,2.32654784]
[1765985955175,0.002,2985.6,2984.1,2.2362]
[1765985955316,3.35149645,2985.6,2984.1,2.2362]
[1765985955516,5.9452,2985.5,2984.2,0.572]
[1765985955747,5.9452,2985.5,2984.3,2.2362]
[1765985955926,5.9452,2985.5,2984.4,2.51692]
[1765985956245,5.9452,2985.5,2984.5,0.09034784]
[1765985956246,0.46438023,2985.4,2984.5,0.09034784]
[1765985956546,5.9452,2985.5,2984.2,2.2362]
[1765985956748,2.5852,2985.6,2984.2,2.8072]
[1765985956945,0.46438023,2985.4,2984.2,2.8072]
[1765985957847,0.46438023,2985.4,2984.7,0.09034784]
[1765985958145,3.9224178,2985.6,2984.7,0.09034784]
[1765985958349,1.03738023,2985.6,2984.9,0.09034784]
[1765985958749,0.573,2985.6,2984.9,0.09034784]
[1765985958955,0.573,2985.6,2984.7,0.09034784]
[1765985959157,3.92242619,2985.6,2984.9,0.09034784]
[1765985959333,5.9452,2985.5,2984.7,0.09034784]
[1765985959530,2.0122,2985.4,2984.7,4.784e-05]
[1765985959762,7.664095,2985.6,2984.5,0.09034784]
[1765985959763,5.9452,2985.3,2984.5,0.09034784]
[1765985960258,5.9452,2985.1,2984.4,0.09034784]
[1765985960433,3.74366252,2985.6,2984.6,0.09034784]
[1765985960634,0.83874648,2985.5,2984.8,0.09034784]
[1765985960833,5.9452,2985.0,2984.3,0.09034784]
[1765985961229,2.0122,2984.6,2983.1,2.2362]
[1765985961432,0.57,2984.7,2983.6,2.32654784]
[1765985961850,5.9452,2984.4,2983.6,0.09034784]
[1765985962052,5.9452,2984.2,2983.2,0.09034784]
[1765985962260,5.9452,2984.2,2982.9,0.001]
[1765985962261,5.9452,2984.0,2982.9,0.001]
[1765985962438,5.9452,2983.9,2982.9,0.001]
[1765985962940,6.350704,2984.1,2983.0,2.2362]
[1765985963146,6.350704,2984.1,2982.9,0.001]
[1765985963331,5.9452,2983.9,2982.8,0.57]
[1765985963534,0.86988423,2983.6,2982.0,0.001]
[1765985963861,5.9452,2983.1,2982.0,0.001]
[1765985964232,2.69448023,2983.4,2982.0,0.001]
[1765985964563,8.63968023,2983.4,2982.0,0.001]
[1765985964951,0.57,2983.5,2982.8,0.09034784]
[1765985965160,0.57,2983.5,2983.0,0.09034784]
[1765985965551,6.5152,2983.8,2983.0,0.09034784]
[1765985965742,2.2301,2983.4,2982.4,4.784e-05]
[1765985965941,2.2301,2982.7,2980.2,5.4516]
[1765985966163,30.0,2982.4,2980.7,0.003]
[1765985966364,0.57,2982.6,2980.7,0.003]
[1765985966565,5.9452,2981.6,2980.7,0.003]
[1765985966740,0.57,2981.7,2980.7,0.003]
[1765985966938,6.5152,2981.7,2980.7,0.003]
[1765985967138,6.5152,2981.7,2979.8,10.70910285]